bitfinex/quotes_SOLUSD_20251030
["timestamp","ask_amount","ask_price","bid_price","bid_amount"]
[1761823207323,0.72165245,192.5,192.49,3.25167085]
[1761823207619,3.45167085,192.58,192.49,3.25167085]
[1761823207829,3.45167085,192.58,192.5,3.25167085]
[1761823208001,0.2,192.58,192.5,3.25167085]
[1761823208204,0.2,192.58,192.48,0.14216157]
[1761823208431,0.2,192.58,192.5,3.25167085]
[1761823208813,0.2,192.58,192.5,6.5033417]
[1761823209130,0.2,192.58,192.47,9.78882769]
[1761823209431,0.2,192.58,192.5,7.1760118]
[1761823209818,0.92,192.51,192.5,7.1760118]
[1761823210418,0.92,192.51,192.5,5.19480519]
[1761823210624,0.92,192.51,192.5,7.1760118]
[1761823211838,0.92,192.51,192.49,7.1760118]
[1761823212135,0.72,192.5,192.47,5.19556418]
[1761823212320,0.72,192.5,192.49,12.37108686]
[1761823212513,0.2,192.51,192.49,12.37108686]
[1761823212707,0.2,192.51,192.5,7.1760118]
[1761823213303,0.2,192.51,192.5,5.18750708]
[1761823214030,0.2,192.51,192.5,25.77950708]
[1761823215321,0.89,192.51,192.46,26.30725372]
[1761823215535,0.89,192.51,192.5,5.18750708]
[1761823215737,0.2,192.51,192.5,5.18750708]
[1761823216245,0.2,192.51,192.5,10.38231227]
[1761823220348,0.2,192.51,192.5,5.18750708]
[1761823220634,0.89,192.51,192.49,5.19507506]
[1761823220844,0.2,192.51,192.5,10.38231227]
[1761823221046,0.2,192.51,192.49,5.18750708]
[1761823221234,0.2,192.51,192.46,5.19566921]
[1761823221429,0.2,192.51,192.5,5.18750708]
[1761823222131,0.2,192.51,192.5,5.84750708]
[1761823222920,0.2,192.51,192.5,11.04231227]
[1761823223122,0.2,192.51,192.5,5.19480519]
[1761823223330,0.2,192.51,192.5,10.38231227]
[1761823223745,0.2,192.51,192.5,5.19480519]
[1761823223953,0.2,192.51,192.5,10.38231227]
[1761823224245,0.2,192.51,192.48,34.2700583]
[1761823224246,0.91,192.51,192.48,5.19516705]
[1761823224452,0.91,192.51,192.5,5.18750708]
[1761823224628,0.91,192.51,192.48,5.19516705]
[1761823224821,0.91,192.51,192.5,10.38231227]
[1761823225048,0.2,192.51,192.5,10.38231227]
[1761823225548,0.2,192.51,192.5,5.19480519]
[1761823225771,0.2,192.51,192.5,10.38231227]
[1761823226247,0.2,192.51,192.5,5.18750708]
[1761823226423,0.91,192.51,192.47,9.78882769]
[1761823226626,0.91,192.51,192.49,5.18750708]
[1761823226842,0.71,192.5,192.49,5.18750708]
[1761823227551,0.71,192.5,192.48,5.18750708]
[1761823227928,0.71,192.5,192.49,5.18750708]
[1761823229350,0.71,192.5,192.47,5.195588]
[1761823229558,0.71,192.5,192.49,5.18750708]
[1761823230364,0.71,192.5,192.47,5.195588]
[1761823230660,0.71,192.5,192.47,5.18750708]
[1761823231558,0.71,192.5,192.46,5.18750708]
[1761823232151,0.71,192.5,192.45,5.18750708]
[1761823232964,5.18750708,192.47,192.39,14.98660304]
[1761823233170,5.18750708,192.46,192.39,5.19777535]
[1761823233340,5.18750708,192.46,192.36,11.49]
[1761823233341,5.18750708,192.46,192.41,5.18750708]
[1761823233661,0.71,192.45,192.41,5.18750708]
[1761823234760,5.18750708,192.44,192.39,5.18750708]
[1761823235365,0.71,192.43,192.39,5.18750708]
[1761823235565,0.71,192.43,192.38,10.38553654]
[1761823235939,0.71,192.43,192.39,5.18750708]
[1761823236453,0.71,192.43,192.39,10.3851921]
[1761823237141,0.71,192.43,192.34,0.83216157]
[1761823237142,0.71,192.43,192.36,5.19855763]
[1761823237342,0.71,192.43,192.37,5.18750708]
[1761823237549,5.89750708,192.43,192.36,5.19855763]
[1761823237742,5.89750708,192.43,192.35,5.18750708]
[1761823237743,5.18750708,192.41,192.35,5.18750708]
[1761823238145,0.71,192.4,192.35,5.18750708]
[1761823238346,0.71,192.4,192.36,5.18750708]
[1761823239457,0.71,192.4,192.36,10.38600952]
[1761823239954,0.71,192.4,192.35,10.38632166]
[1761823241543,0.71,192.4,192.35,5.19881458]
[1761823241747,0.71,192.4,192.35,10.38632166]
[1761823242375,21.302,192.4,192.35,10.38632166]
[1761823242761,0.67,192.39,192.35,10.38632166]
[1761823243882,0.67,192.39,192.38,5.18750708]
[1761823244090,5.18750708,192.45,192.38,5.18750708]
[1761823244384,0.67,192.44,192.41,5.18750708]
[1761823245356,0.67,192.44,192.41,2.07740576]
[1761823245986,0.67,192.44,192.37,18.1941051]
[1761823246286,0.67,192.46,192.43,2.07740576]
[1761823246650,0.67,192.46,192.45,2.07740576]
[1761823246854,0.67,192.46,192.42,2.07740576]
[1761823247358,0.67,192.46,192.43,5.1966949]
[1761823248273,0.67,192.46,192.42,10.38971341]
[1761823248963,5.19280197,192.44,192.37,5.19831574]
[1761823249277,5.19280197,192.44,192.36,5.19280197]
[1761823249588,0.67,192.43,192.37,5.19831574]
[1761823249887,5.86280197,192.43,192.36,10.39133957]
[1761823250185,0.67,192.42,192.36,10.39133957]
[1761823250869,5.86280197,192.42,192.36,10.39133957]
[1761823251390,0.67,192.41,192.36,10.39133957]
[1761823251782,0.67,192.41,192.37,5.19280197]
[1761823251953,0.67,192.41,192.38,5.19280197]
[1761823252170,21.262,192.44,192.4,5.19280197]
[1761823252385,20.592,192.44,192.4,5.19280197]
[1761823252594,21.302,192.44,192.41,5.19280197]
[1761823253271,0.71,192.43,192.41,5.19280197]
[1761823253493,0.71,192.43,192.38,5.19280197]
[1761823253684,0.71,192.43,192.38,5.19787823]
[1761823253882,5.19280197,192.41,192.35,5.19860485]
[1761823254186,5.19280197,192.41,192.35,10.39140682]
[1761823254387,0.71,192.4,192.35,10.39140682]
[1761823255672,20.592,192.44,192.39,5.19280197]
[1761823255995,0.71,192.43,192.39,10.39057732]
[1761823256190,0.71,192.43,192.39,5.19777535]
[1761823256795,0.71,192.43,192.38,10.39077897]
[1761823256994,0.71,192.43,192.38,5.19280197]
[1761823257378,5.90280197,192.43,192.37,10.39105966]
[1761823257566,0.71,192.43,192.37,10.39105966]
[1761823257770,0.71,192.42,192.37,10.39105966]
[1761823260520,0.71,192.42,192.34,5.19280197]
[1761823260521,5.19280197,192.4,192.34,5.19280197]
[1761823260805,5.19280197,192.36,192.29,5.39280197]
[1761823261174,5.19280197,192.34,192.29,0.2]
[1761823261499,9.78882769,192.28,192.2,5.19280197]
[1761823261703,5.19280197,192.27,192.2,5.19280197]
[1761823262000,5.19280197,192.26,192.19,10.75621047]
[1761823262211,5.19280197,192.26,192.19,5.5634085]
[1761823262212,20.592,192.23,192.19,5.5634085]
[1761823262375,5.19280197,192.22,192.19,5.5634085]
[1761823262581,5.19280197,192.21,192.19,5.5634085]
[1761823262999,0.71,192.2,192.19,5.5634085]
[1761823263504,5.90280197,192.2,192.19,5.5634085]
[1761823264189,20.592,192.21,192.19,15.95939481]
[1761823264496,20.592,192.21,192.19,10.76656191]
[1761823264799,0.71,192.2,192.19,10.76656191]
[1761823264996,0.71,192.2,192.19,5.5634085]
[1761823265211,5.90280197,192.2,192.19,5.5634085]
[1761823265906,0.71,192.2,192.19,5.5634085]
[1761823266104,20.592,192.21,192.19,10.76659284]
[1761823267400,21.302,192.21,192.19,10.76659284]
[1761823267614,0.71,192.2,192.19,5.5634085]
[1761823267905,5.90280197,192.2,192.19,5.5634085]
[1761823269009,26.49480197,192.2,192.19,5.5634085]
[1761823270981,41.62870486,192.2,192.19,5.5634085]
[1761823273217,36.42579123,192.2,192.19,5.5634085]
[1761823273391,41.62870486,192.2,192.19,5.5634085]
[1761823273591,36.42579123,192.2,192.19,5.5634085]
[1761823275304,38.43923345,192.2,192.19,5.5634085]
[1761823276096,43.64214708,192.2,192.19,5.5634085]
[1761823276597,93.64214708,192.2,192.19,5.5634085]
[1761823276809,43.64214708,192.2,192.19,5.5634085]
[1761823278799,33.85331939,192.2,192.19,5.5634085]
[1761823279518,43.64214708,192.2,192.19,5.5634085]
[1761823280037,93.64214708,192.2,192.19,5.5634085]
[1761823280338,30.38082769,192.14,192.06,61.6]
[1761823280491,27.79824419,192.1,192.06,61.6]
[1761823280691,27.79824419,192.1,192.06,66.80664999]
[1761823280992,20.592,192.08,192.07,0.68]
[1761823282014,20.592,192.09,192.07,0.68]
[1761823282196,20.592,192.09,192.08,5.20616409]
[1761823282710,20.592,192.09,192.08,5.85616409]
[1761823283017,20.592,192.09,192.08,0.65]
[1761823283216,20.592,192.09,192.06,66.80667539]
[1761823283418,20.592,192.09,192.06,67.45667539]
[1761823283626,20.592,192.09,192.07,0.65]
[1761823283997,20.592,192.07,192.06,61.6]
[1761823284306,21.292,192.07,192.06,61.6]
[1761823284502,28.49824419,192.07,192.01,5.20788056]
[1761823284707,7.20624419,192.05,192.01,5.20788056]
[1761823285104,7.90624419,192.05,192.01,5.20788056]
[1761823285705,7.90624419,192.05,192.0,18.22914572]
[1761823285904,27.79824419,192.06,192.01,0.65]
[1761823286126,20.592,192.06,192.01,7.85624419]
[1761823287321,28.49824419,192.06,192.01,0.65]
[1761823287905,28.49824419,192.06,192.02,5.20779085]
[1761823288102,21.292,192.06,192.02,5.20779085]
[1761823288726,0.7,192.05,192.02,5.20779085]
[1761823288915,7.90624419,192.05,192.02,5.20779085]
[1761823289523,0.7,192.04,192.01,5.20800319]
[1761823291430,7.20624419,192.05,192.01,5.20800319]
[1761823291611,7.90624419,192.05,192.01,5.20800319]
[1761823292195,7.20624419,192.05,192.01,5.20800319]
[1761823292512,20.592,192.06,192.02,0.65]
[1761823292712,28.49824419,192.06,192.01,18.87815839]
[1761823293112,0.7,192.05,192.01,5.20800319]
[1761823293354,7.20624419,192.04,192.0,5.20830155]
[1761823293826,0.7,192.03,192.0,5.20830155]
[1761823294201,20.592,192.06,192.0,5.20830155]
[1761823294202,7.20624419,192.05,192.0,5.20830155]
[1761823294402,0.85265026,192.17,192.01,7.68624419]
[1761823294597,4.42285584,192.49,192.01,7.68624419]
[1761823294598,65.57440529,192.45,192.3,1.99999999]
[1761823294834,115.63680904,192.47,192.31,1.99999999]
[1761823295124,50.0,192.43,192.32,7.20624419]
[1761823295315,50.0,192.45,192.27,2.71999152]
[1761823295316,54.16270614,192.45,192.34,1.99999999]
[1761823295501,50.0,192.46,192.35,7.20624419]
[1761823295698,50.0,192.46,192.37,7.20624419]
[1761823296235,5.19615484,192.45,192.37,7.20624419]
[1761823296406,5.89591313,192.46,192.37,7.20624419]
[1761823296609,0.7,192.45,192.37,7.20624419]
[1761823296909,0.7,192.45,192.4,7.20624419]
[1761823297110,20.592,192.43,192.4,7.20624419]
[1761823297312,20.592,192.38,192.32,1.99999999]
[1761823297647,20.592,192.38,192.33,1.99999999]
[1761823297810,0.7,192.37,192.33,1.99999999]
[1761823298126,0.7,192.47,192.4,1.99999999]
[1761823298354,0.7,192.47,192.41,1.99999999]
[1761823298355,7.90624419,192.47,192.41,1.99999999]
[1761823298723,0.7,192.46,192.42,1.99999999]
[1761823299112,0.7,192.46,192.43,1.99999999]
[1761823300134,20.592,192.47,192.43,1.99999999]
[1761823300334,0.7,192.46,192.43,1.99999999]
[1761823303312,21.292,192.46,192.43,1.99999999]
[1761823303538,20.592,192.45,192.41,1.99999999]
[1761823303856,21.292,192.45,192.41,1.99999999]
[1761823304161,0.7,192.44,192.41,1.99999999]
[1761823306871,0.7,192.44,192.4,1.99999999]
[1761823307384,0.7,192.44,192.41,1.99999999]
[1761823311658,0.7,192.44,192.4,1.99999999]
[1761823311855,7.90624419,192.44,192.4,1.99999999]
[1761823312056,0.7,192.43,192.4,1.99999999]
[1761823313760,21.292,192.43,192.39,7.19775644]
[1761823313965,21.292,192.43,192.4,1.99999999]
[1761823314383,20.592,192.43,192.4,1.99999999]
[1761823314774,0.68,192.42,192.39,14.40400063]
[1761823315081,0.68,192.42,192.4,1.99999999]
[1761823316165,0.68,192.42,192.4,63.59999999]
[1761823317476,0.68,192.42,192.4,61.6]
[1761823317682,7.20624419,192.41,192.35,63.59999999]
[1761823317868,7.20624419,192.39,192.35,63.59999999]
[1761823318067,7.20624419,192.39,192.36,1.99999999]
[1761823318256,0.68,192.38,192.36,1.99999999]
[1761823319663,7.88624419,192.41,192.38,1.99999999]
[1761823319863,7.20624419,192.39,192.36,61.6]
[1761823320172,7.20624419,192.38,192.36,63.59999999]
[1761823320376,0.68,192.37,192.36,63.59999999]
[1761823320686,0.68,192.37,192.36,1.99999999]
[1761823321074,0.68,192.37,192.35,63.59999999]
[1761823322769,0.68,192.37,192.35,61.6]
[1761823323676,7.88624419,192.37,192.35,61.6]
[1761823324169,0.68,192.36,192.35,61.6]
[1761823324889,21.272,192.39,192.35,63.59999999]
[1761823325465,21.272,192.39,192.35,68.79884862]
[1761823325992,0.68,192.38,192.35,63.59999999]
[1761823327287,0.68,192.38,192.35,61.6]
[1761823327482,0.68,192.38,192.35,68.79877634]
[1761823327664,0.1,192.49,192.36,9.20624418]
[1761823327866,7.88624419,192.48,192.42,1.99999999]
[1761823328086,20.592,192.45,192.42,1.99999999]
[1761823328290,0.68,192.48,192.44,1.99999999]
[1761823329079,20.592,192.46,192.44,1.99999999]
[1761823329592,20.592,192.46,192.44,7.19627505]
[1761823330091,7.30624419,192.49,192.48,1.99999999]
[1761823330092,0.1,192.49,192.48,1.99999999]
[1761823330689,0.1,192.49,192.47,1.99999999]
[1761823330905,0.1,192.49,192.48,1.99999999]
[1761823331192,0.78,192.49,192.48,1.99999999]
[1761823331575,0.1,192.49,192.48,1.99999999]
[1761823331977,0.1,192.49,192.48,7.19534496]
[1761823332178,0.1,192.49,192.48,5.19534497]
[1761823332374,0.1,192.49,192.48,1.99999999]
[1761823334670,7.98624419,192.49,192.46,1.99999999]
[1761823334870,7.20624419,192.48,192.44,1.99999999]
[1761823335085,0.69,192.48,192.44,63.59999999]
[1761823335302,0.69,192.47,192.44,63.59999999]
[1761823335492,0.69,192.47,192.44,61.6]
[1761823336183,0.69,192.47,192.44,63.59999999]
[1761823336378,11.07881508,192.47,192.44,63.59999999]
[1761823336583,25.78517476,192.45,192.42,1.99999999]
[1761823336780,5.19317476,192.43,192.42,1.99999999]
[1761823337292,5.88317476,192.43,192.42,1.99999999]
[1761823338473,5.88317476,192.43,192.41,1.99999999]
[1761823338674,0.69,192.42,192.41,1.99999999]
[1761823338878,0.69,192.42,192.4,1.99999999]
[1761823339203,0.69,192.42,192.41,1.99999999]
[1761823340999,5.1964326,192.44,192.41,1.99999999]
[1761823341302,5.19317476,192.43,192.41,1.99999999]
[1761823341682,5.19317476,192.42,192.38,1.99999999]
[1761823341875,25.78517476,192.39,192.38,61.6]
[1761823342297,25.78517476,192.39,192.34,1.99999999]
[1761823342499,5.19317476,192.36,192.34,61.6]
[1761823342686,3.88481179,192.35,192.34,61.6]
[1761823342883,3.88481179,192.35,192.34,63.59999999]
[1761823343384,3.88481179,192.35,192.31,11.09286034]
[1761823343385,3.88481179,192.35,192.32,1.99999999]
[1761823343591,3.88481179,192.34,192.32,1.99999999]
[1761823343793,5.85317476,192.37,192.33,1.99999999]
[1761823344094,20.592,192.39,192.33,1.99999999]
[1761823344293,5.19317476,192.39,192.36,1.99999999]
[1761823344497,25.78517476,192.41,192.36,1.99999999]
[1761823345111,26.44517476,192.41,192.37,1.99999999]
[1761823345404,20.592,192.39,192.37,1.99999999]
[1761823346106,20.592,192.4,192.37,1.99999999]
[1761823346405,5.85317476,192.39,192.37,1.99999999]
[1761823347003,5.19317476,192.39,192.37,1.99999999]
[1761823347203,25.78517476,192.4,192.37,1.99999999]
[1761823347985,0.66,192.43,192.37,1.99999999]
[1761823347986,5.19317476,192.41,192.37,1.99999999]
[1761823348185,5.19317476,192.4,192.37,1.99999999]
[1761823348422,5.19317476,192.4,192.37,63.59999999]
[1761823349685,5.85317476,192.4,192.37,63.59999999]
[1761823350026,5.19317476,192.39,192.37,63.59999999]
[1761823351197,5.19317476,192.39,192.38,1.99999999]
[1761823351404,2.07899187,192.39,192.38,1.99999999]
[1761823352123,22.67099187,192.4,192.38,1.99999999]
[1761823352291,2.07899187,192.43,192.39,1.99999999]
[1761823353889,2.73899187,192.43,192.39,1.99999999]
[1761823354930,2.07899187,192.43,192.4,0.7]
[1761823355213,20.592,192.45,192.42,1.99999999]
[1761823355398,20.592,192.44,192.42,63.59999999]
[1761823357909,21.252,192.44,192.42,63.59999999]
[1761823358094,20.592,192.43,192.42,63.59999999]
[1761823358705,23.33099187,192.43,192.42,61.6]
[1761823359489,23.33099187,192.43,192.42,63.59999999]
[1761823359697,20.592,192.43,192.42,63.59999999]
[1761823359987,21.252,192.43,192.42,63.59999999]
[1761823360318,21.252,192.43,192.41,1.99999999]
[1761823360938,21.252,192.43,192.42,1.99999999]
[1761823361092,21.252,192.43,192.4,1.99999999]
[1761823361288,21.252,192.43,192.42,1.99999999]
[1761823361493,20.592,192.44,192.42,1.99999999]
[1761823362012,2.07899187,192.46,192.44,1.99999999]
[1761823362311,20.592,192.45,192.44,1.99999999]
[1761823362705,20.692,192.49,192.45,1.99999999]
[1761823363028,21.352,192.49,192.45,63.59999999]
[1761823363323,0.76,192.49,192.48,1.99999999]
[1761823363812,0.1,192.49,192.48,1.99999999]
[1761823364012,0.1,192.49,192.47,1.99999999]
[1761823364198,2.83899187,192.49,192.46,1.99999999]
[1761823364402,0.76,192.49,192.47,1.99999999]
[1761823365406,0.76,192.49,192.46,1.99999999]
[1761823365711,2.83899187,192.49,192.47,1.99999999]
[1761823365914,2.73899187,192.48,192.47,1.99999999]
[1761823366722,2.17899187,192.49,192.47,1.99999999]
[1761823366925,0.1,192.49,192.48,1.99999999]
[1761823367124,20.692,192.49,192.48,1.99999999]
[1761823367896,0.76,192.49,192.47,1.99999999]
[1761823368113,2.83899187,192.49,192.47,1.99999999]
[1761823368313,20.692,192.49,192.48,1.99999999]
[1761823369718,0.1,192.49,192.48,1.99999999]
[1761823371114,23.43099187,192.49,192.48,1.99999999]
[1761823371298,2.83899187,192.49,192.47,1.99999999]
[1761823371495,2.73899187,192.48,192.47,1.99999999]
[1761823374318,0.66,192.48,192.47,1.99999999]
[1761823375025,2.73899187,192.48,192.47,1.99999999]
[1761823379203,2.07899187,192.48,192.47,1.99999999]
[1761823381324,22.77099187,192.49,192.47,1.99999999]
[1761823381712,23.43099187,192.49,192.47,1.99999999]
[1761823381901,2.07899187,192.48,192.47,1.99999999]
[1761823382104,2.73899187,192.48,192.45,1.99999999]
[1761823382305,20.692,192.49,192.42,61.6]
[1761823382306,2.07899187,192.46,192.44,1.99999999]
[1761823382501,20.592,192.46,192.45,1.99999999]
[1761823382728,22.67099187,192.46,192.45,1.99999999]
[1761823383106,0.66,192.47,192.46,1.99999999]
[1761823383107,2.07899187,192.47,192.46,1.99999999]
[1761823383306,20.692,192.49,192.46,1.99999999]
[1761823383307,2.07899187,192.48,192.46,1.99999999]
[1761823383737,2.07899187,192.48,192.47,1.99999999]
[1761823384114,2.73899187,192.48,192.47,1.99999999]
[1761823385022,7.93433684,192.48,192.45,1.99999999]
[1761823385218,2.07899187,192.46,192.45,1.99999999]
[1761823385421,2.07899187,192.46,192.45,5.87012537]
[1761823386217,2.07899187,192.46,192.45,1.99999999]
[1761823387213,22.67099187,192.47,192.46,1.99999999]
[1761823387543,2.17899187,192.49,192.47,1.99999999]
[1761823388134,20.592,192.48,192.47,1.99999999]
[1761823388450,0.1,192.49,192.48,1.99999999]
[1761823388917,2.83899187,192.49,192.47,1.99999999]
[1761823389114,25.7876149,192.47,192.42,1.99999999]
[1761823389317,2.07899187,192.43,192.42,1.99999999]
[1761823389716,2.73899187,192.43,192.42,1.99999999]
[1761823389922,2.73899187,192.43,192.41,1.99999999]
[1761823390124,2.07899187,192.42,192.41,1.99999999]
[1761823390335,2.73899187,192.42,192.4,1.99999999]
[1761823390537,2.73899187,192.41,192.4,1.99999999]
[1761823391122,23.33099187,192.41,192.4,1.99999999]
[1761823392237,5.19649698,192.44,192.4,1.99999999]
[1761823392440,22.67099187,192.41,192.4,1.99999999]
[1761823393049,2.07899187,192.41,192.4,1.99999999]
[1761823393464,22.67099187,192.41,192.4,1.99999999]
[1761823393959,23.33099187,192.41,192.4,1.99999999]
[1761823394147,23.33099187,192.41,192.39,1.99999999]
[1761823394319,2.72899187,192.4,192.38,1.99999999]
[1761823394643,2.07899187,192.39,192.38,1.99999999]
[1761823395057,2.72899187,192.39,192.38,1.99999999]
[1761823395257,2.72899187,192.39,192.35,1.99999999]
[1761823395438,3.24916834,192.37,192.36,3.88180057]
[1761823396228,7.13564086,192.37,192.35,1.99999999]
[1761823396453,3.88647252,192.36,192.35,1.99999999]
[1761823397326,24.47847252,192.36,192.35,1.99999999]
[1761823398257,24.49116834,192.36,192.35,1.99999999]
[1761823398507,20.592,192.36,192.35,1.99999999]
[1761823398753,3.24916834,192.37,192.36,1.99999999]
[1761823399340,3.24916834,192.41,192.38,1.99999999]
[1761823399548,3.24916834,192.42,192.39,1.99999999]
[1761823400043,3.89916834,192.42,192.39,1.99999999]
[1761823400243,3.24916834,192.41,192.39,1.99999999]
[1761823400555,3.24916834,192.4,192.39,1.99999999]
[1761823401833,3.89916834,192.4,192.37,1.99999999]
[1761823402039,5.19733313,192.41,192.37,1.99999999]
[1761823402040,3.24916834,192.38,192.37,1.99999999]
[1761823402251,3.24916834,192.38,192.35,1.99999999]
[1761823402453,3.24916834,192.36,192.3,1.99999999]
[1761823402766,3.24916834,192.31,192.28,1.99999999]
[1761823402940,3.24916834,192.29,192.28,1.99999999]
[1761823403358,0.72,192.32,192.28,1.99999999]
[1761823403359,3.24916834,192.3,192.28,1.99999999]
[1761823404168,3.24916834,192.29,192.28,1.99999999]
[1761823404367,3.24916834,192.29,192.25,0.67]
[1761823404368,3.24916834,192.31,192.29,1.99999999]
[1761823404543,23.84116834,192.31,192.29,1.99999999]
[1761823404942,3.24916834,192.31,192.29,1.99999999]
[1761823405162,20.592,192.3,192.29,1.99999999]
[1761823405459,23.84116834,192.3,192.29,1.99999999]
[1761823405661,3.24916834,192.3,192.29,1.99999999]
[1761823406460,23.84116834,192.3,192.29,1.99999999]
[1761823406660,20.592,192.3,192.29,1.99999999]
[1761823406974,20.592,192.29,192.28,7.20063295]
[1761823407173,3.24916834,192.31,192.28,7.87063295]
[1761823407466,3.24916834,192.35,192.32,1.99999999]
[1761823407674,3.24916834,192.36,192.34,1.99999999]
[1761823408843,3.24916834,192.35,192.34,1.99999999]
[1761823410273,23.84116834,192.36,192.34,1.99999999]
[1761823410654,20.592,192.37,192.35,1.99999999]
[1761823410857,3.24916834,192.38,192.37,1.99999999]
[1761823411248,20.592,192.38,192.37,1.99999999]
[1761823411545,20.592,192.38,192.37,2.66999999]
[1761823411866,20.592,192.38,192.37,1.99999999]
[1761823413069,3.24916834,192.39,192.37,1.99999999]
[1761823413517,3.24916834,192.41,192.38,2.66999999]
[1761823413776,3.24916834,192.46,192.43,1.99999999]
[1761823413964,3.24916834,192.44,192.43,1.99999999]
[1761823414679,20.592,192.45,192.43,1.99999999]
[1761823414877,19.892,192.45,192.44,3.91916834]
[1761823415175,0.1,192.49,192.48,1.99999999]
[1761823415480,0.1,192.49,192.48,5.24916833]
[1761823415866,0.1,192.49,192.48,1.99999999]
[1761823417982,7.28015735,192.49,192.48,1.99999999]
[1761823418156,7.28015735,192.49,192.46,1.99999999]
[1761823418157,8.00015735,192.49,192.46,1.99999999]
[1761823418358,8.00015735,192.49,192.45,1.99999999]
[1761823418359,20.592,192.46,192.45,1.99999999]
[1761823418853,28.49215735,192.46,192.43,1.99999999]
[1761823419051,7.18015735,192.44,192.42,1.99999999]
[1761823419252,7.18015735,192.43,192.41,1.99999999]
[1761823419472,7.90015735,192.42,192.41,1.99999999]
[1761823419706,7.90015735,192.42,192.4,1.99999999]
[1761823419871,0.72,192.42,192.4,1.99999999]
[1761823420066,7.90015735,192.42,192.4,1.99999999]
[1761823420786,7.90015735,192.41,192.4,1.99999999]
[1761823422664,7.18015735,192.42,192.4,1.99999999]
[1761823423173,7.90015735,192.42,192.39,1.99999999]
[1761823424081,7.18015735,192.42,192.39,1.99999999]
[1761823424283,7.90015735,192.41,192.37,1.99999999]
[1761823424490,7.90015735,192.41,192.38,1.99999999]
[1761823424864,0.72,192.4,192.38,1.99999999]
[1761823425266,0.72,192.4,192.37,1.99999999]
[1761823425981,7.90015735,192.4,192.37,63.59999999]
[1761823426477,7.18015735,192.38,192.34,1.99999999]
[1761823426682,7.18015735,192.36,192.33,1.99999999]
[1761823426996,7.18015735,192.35,192.34,1.99999999]
[1761823427768,28.49215735,192.37,192.34,1.99999999]
[1761823428301,0.72,192.36,192.34,1.99999999]
[1761823428899,20.592,192.38,192.37,1.99999999]
[1761823429890,20.592,192.37,192.36,1.99999999]
[1761823431026,21.312,192.4,192.36,1.99999999]
[1761823431313,28.49215735,192.4,192.36,1.99999999]
[1761823431473,0.72,192.39,192.36,1.99999999]
[1761823431677,20.592,192.37,192.36,1.99999999]
[1761823432068,27.77215735,192.37,192.36,1.99999999]
[1761823432303,28.49215735,192.37,192.35,1.99999999]
[1761823432616,7.18015735,192.36,192.35,1.99999999]
[1761823432903,21.312,192.37,192.36,1.99999999]
[1761823433404,28.46215735,192.37,192.34,1.99999999]
[1761823433570,7.18015735,192.36,192.34,1.99999999]
[1761823433765,7.18015735,192.35,192.32,1.99999999]
[1761823433991,7.18015735,192.35,192.33,1.99999999]
[1761823434206,7.87015735,192.35,192.33,1.99999999]
[1761823434704,7.87015735,192.35,192.32,63.59999999]
[1761823434881,7.18015735,192.35,192.32,63.59999999]
[1761823435071,0.69,192.34,192.33,1.99999999]
[1761823435775,7.18015735,192.35,192.33,1.99999999]
[1761823436084,28.46215735,192.34,192.33,1.99999999]
[1761823436282,28.46215735,192.34,192.32,61.6]
[1761823436468,28.46215735,192.34,192.32,63.59999999]
[1761823436887,28.46215735,192.34,192.33,1.99999999]
[1761823437078,21.282,192.34,192.33,1.99999999]
[1761823437472,20.592,192.34,192.33,1.99999999]
[1761823437678,20.592,192.34,192.32,61.6]
[1761823437884,20.592,192.34,192.33,1.99999999]
[1761823438575,20.592,192.35,192.33,1.99999999]
[1761823438802,20.592,192.34,192.33,1.99999999]
[1761823439584,7.87015735,192.37,192.34,1.99999999]
[1761823439806,20.592,192.35,192.34,1.99999999]
[1761823440306,20.592,192.34,192.32,68.79960172]
[1761823440508,20.592,192.34,192.33,1.99999999]
[1761823440885,5.19779843,192.39,192.35,1.99999999]
[1761823440886,7.18015735,192.39,192.35,1.99999999]
[1761823441081,7.87015735,192.41,192.37,1.99999999]
[1761823441280,20.592,192.38,192.37,63.59999999]
[1761823441510,7.18015735,192.43,192.38,1.99999999]
[1761823441669,0.69,192.44,192.4,1.99999999]